Cogmind - Beta 13 @@@ ROGUE MODE // 2024.04.04 @ 09:43:00 Player: buwwet Result: Destroyed by G-67 Veteran with Field Laser Performance ------------- Evolutions (6) 3000 Regions Visited (18) 3600 Robots Destroyed (153) 765 Value Destroyed (6034) 6034 Prototype IDs (4) 80 Alien Tech Used (0) 0 Bonus (1713) 1713 TOTAL SCORE: 15192 Bonus ------- High Alert Combat Kills 147 Follower Combat Kills 966 Aligned with FarCom 300 Met Data Miner 300 Cogmind --------- Core Integrity 0/1150 Matter 182/300 Energy 85/100 System Corruption 3% Temperature Cool (0) Movement Core (150) Ox2 Location -4/Upper Caves Parts ------- > --- POWER (2) -------- (None) > --- PROPULSION (6) --- (None) > --- UTILITY (7) ------ Advanced Terrain Scan Processor Graphene Brace Improved Thermal Shield > --- WEAPON (4) ------- Power Maul Lance > --- INVENTORY (5) ---- (None) Peak State ------------ > --- POWER ------------ Improved Deuterium Engine Micro Fission Core > --- PROPULSION ------- Improved Gravmag System Gyrokinetic Inverter Linear Gravjet Linear Gravjet Field Propulsion Drive > --- UTILITY ---------- Advanced Heat Sink Medium Storage Unit Core Analyzer Phase Shifter Improved Light Armor Plating Advanced Hacking Suite System Shield > --- WEAPON ----------- Heavy Laser Bore Cannon Great Axe > --- INVENTORY -------- Micro Fission Core Improved Treads Carbon-fiber Leg Carbon-fiber Leg Improved Weapon Cycler Improved Light Armor Plating Wave Gun Heavy Phase Cannon Improved Proton Missile Launcher [Rating: 83] Favorites ----------- Power Light Nuclear Core Engine Light Angular Momentum Engine Power Core Light Nuclear Core Propulsion Carbon-fiber Leg Treads Armored Treads Leg Carbon-fiber Leg Hover Unit Linear Gravjet Flight Unit VTOL Module Utility Core Analyzer Device Microactuators Storage Small Storage Unit Processor Core Analyzer Hackware System Shield Protection Improved Light Armor Plating Weapon Longsword +1 Energy Gun Heavy Laser Energy Cannon Beam Cannon Ballistic Gun Autogun Ballistic Cannon Bore Cannon Launcher Rocket Launcher Impact Weapon Power Maul Slashing Weapon Longsword +1 Piercing Weapon Makeshift Spear Special Melee Weapon Datajack Build | -11 -10 -10 -10 -9 -8 -7 -7 -7 -7 -7 -7 -6 -6 -6 -5 -5 -4 -4 ------- Run | Yrd Mat Min Exi Min Mat Fac Was Fac Low Low Dat Pro Fac Ext Fac Upp Fac Upp Slots Evolved 12 | . . . . . 4 2 . . . . . . 2 . 2 . 2 . Power 1 | . . . . . . . . . . . . . 1 . . . . . Propulsion 4 | . . . . . 2 1 . . . . . . . . . . 1 . Utility 5 | . . . . . 2 . . . . . . . 1 . 2 . . . Weapon 2 | . . . . . . 1 . . . . . . . . . . 1 . Parts Attached 228 | 7 13 2 1 . 36 7 3 12 1 1 . 11 22 27 56 10 11 8 Power 24 | 1 2 . . . 3 1 . . 1 1 . 2 4 2 5 . 1 1 Engine 14 | 1 2 . . . 1 . . . . 1 . 1 2 2 2 . 1 1 Core 10 | . . . . . 2 1 . . 1 . . 1 2 . 3 . . . Reactor . | . . . . . . . . . . . . . . . . . . . Propulsion 93 | 2 7 2 . . 17 4 2 6 . . . 3 12 10 22 5 1 . Treads 12 | . . . . . 5 . . 1 . . . . 2 1 3 . . . Leg 69 | 2 7 2 . . 11 4 2 5 . . . 2 10 9 11 4 . . Wheel . | . . . . . . . . . . . . . . . . . . . Hover 10 | . . . . . 1 . . . . . . . . . 7 1 1 . Flight 2 | . . . . . . . . . . . . 1 . . 1 . . . Utility 67 | 2 1 . . . 9 1 1 3 . . . 2 4 11 21 2 8 2 Device 36 | 1 . . . . 4 1 . . . . . 1 3 8 9 . 7 2 Storage 2 | 1 . . . . . . . . . . . . . . 1 . . . Processor 4 | . 1 . . . . . 1 1 . . . . . . . . 1 . Hackware 3 | . . . . . . . . . . . . . . . 3 . . . Protection 22 | . . . . . 5 . . 2 . . . 1 1 3 8 2 . . Artifact . | . . . . . . . . . . . . . . . . . . . Weapon 44 | 2 3 . 1 . 7 1 . 3 . . . 4 2 4 8 3 1 5 Energy Gun 13 | 1 2 . . . 2 1 . 1 . . . . 1 3 2 . . . Energy Cannon 3 | . 1 . . . . . . . . . . . . . . 1 . 1 Ballistic Gun 4 | 1 . . . . 1 . . . . . . 2 . . . . . . Ballistic Cannon 14 | . . . . . . . . 2 . . . 1 1 1 4 2 1 2 Launcher 2 | . . . . . 1 . . . . . . . . . 1 . . . Special Weapon . | . . . . . . . . . . . . . . . . . . . Impact Weapon 1 | . . . . . . . . . . . . . . . . . . 1 Slashing Weapon 4 | . . . 1 . 2 . . . . . . . . . 1 . . . Piercing Weapon 2 | . . . . . . . . . . . . 1 . . . . . 1 Special Melee Weapon 1 | . . . . . 1 . . . . . . . . . . . . . Unidentified Prototypes 1 | . . . 1 . . . . . . . . . . . . . . . Parts Lost 91 | . 4 . . . 3 . 1 1 . . . 9 12 6 28 12 . 15 Power 14 | . 1 . . . 1 . . . . . . 1 1 1 5 2 . 2 Propulsion 27 | . . . . . . . . 1 . . . 3 5 2 9 4 . 3 Utility 28 | . 1 . . . 1 . . . . . . 1 3 2 10 4 . 6 Weapon 22 | . 2 . . . 1 . 1 . . . . 4 3 1 4 2 . 4 Highest Loss Streak 10 | . 2 . . . 2 . 1 1 . . . 3 6 3 7 10 . 7 To Critical Strikes . | . . . . . . . . . . . . . . . . . . . Average Slot Usage (%) 88 | . 98 100 100 100 98 98 94 99 100 100 100 88 85 96 90 40 46 37 Engine 6 | . 13 14 14 14 2 1 . . . 2 7 6 7 11 6 . 1 2 Core 2 | . . . . . 6 5 7 7 7 4 . . 1 1 3 3 . . Treads 3 | . . . . . 8 7 . 6 7 7 7 2 3 3 2 . . . Leg 23 | . 28 28 28 28 26 30 38 30 30 30 30 28 23 28 13 2 10 2 Hover 1 | . . . . . . . . . . . . . . . 6 9 . 1 Device 8 | . 5 . . . 7 7 7 7 7 7 7 7 9 18 9 2 18 18 Storage 4 | . 14 14 14 14 9 7 7 4 . . . . . . 4 3 . . Processor 8 | . 8 14 14 14 . . . 10 15 15 15 15 13 7 5 3 5 5 Hackware 1 | . . . . . . . . . . . . . . . 9 1 . . Protection 6 | . . . . . 18 15 12 7 7 7 7 6 4 4 6 4 5 1 Energy Gun 4 | . 14 14 8 . 2 5 7 7 7 7 7 . . 10 3 2 . . Energy Cannon 1 | . 1 14 14 14 . . . . . . . . . . . 1 . 1 Ballistic Gun 1 | . 11 . . . 6 . . . . . . 5 . . . . . . Ballistic Cannon 3 | . . . . . . . . 7 7 7 7 1 9 1 5 1 5 3 Slashing Weapon 5 | . . . 5 14 9 7 7 7 7 7 7 7 6 6 5 1 . . Naked Turns 27 | . . . . . . . . . . . . . . . . 27 . . Heaviest Build 64 | 11 14 14 16 16 27 32 32 29 24 29 29 29 50 53 64 42 40 49 Greatest Support 77 | 20 20 20 20 20 40 61 67 67 61 61 61 61 75 77 77 41 40 40 Greatest Overweight (x) 11 | . 1 . . . 1 . . . . . . . 1 . 5 1 . 11 Average Overweight (x) . | . . . . . . . . . . . . . . . . . . 1 Largest Inventory Capacity 10 | 8 8 8 8 8 8 8 8 8 5 5 5 5 5 5 10 10 5 5 Average Capacity 6 | 7 8 8 8 8 8 8 8 6 5 5 5 5 5 5 9 8 5 5 Most Carried 10 | 1 8 8 8 8 8 8 8 8 5 5 5 5 5 5 10 8 5 4 Average Carried 5 | . 6 7 7 8 7 7 7 6 5 4 5 3 3 4 6 6 3 1 Final Capacity 10 | 8 8 8 8 8 8 8 8 5 5 5 5 5 5 5 10 5 5 5 Final Carried 8 | 1 8 8 8 8 6 8 7 5 5 5 5 3 1 5 8 5 5 . Class Distribution -------------------- 51% | Mutant 41% | Scavenger-Mutant 3% | Hacker-Mutant 3% | Gladiator Dominant Class ---------------- Mutant | -10/Materials Scavenger-Mutant | -10/Mines Scavenger-Mutant | -10/Exiles Mutant | -9/Mines Scavenger-Mutant | -8/Materials Mutant | -7/Factory Mutant | -7/Waste Mutant | -7/Factory Mutant | -7/Lower Caves Mutant | -7/Lower Caves Mutant | -7/Data Miner Mutant | -6/Proximity Caves Scavenger-Mutant | -6/Factory Scavenger-Mutant | -6/Extension Scavenger-Mutant | -5/Factory Mutant | -5/Upper Caves Mutant | -4/Factory Mutant | -4/Upper Caves Resources | -11 -10 -10 -10 -9 -8 -7 -7 -7 -7 -7 -7 -6 -6 -6 -5 -5 -4 -4 ----------- Run | Yrd Mat Min Exi Min Mat Fac Was Fac Low Low Dat Pro Fac Ext Fac Upp Fac Upp Matter Collected 2748 | 262 151 30 . 10 434 40 . 192 97 6 . 227 210 300 514 118 5 152 Remotely . | . . . . . . . . . . . . . . . . . . . Salvage Created 6897 | 24 487 116 . 314 1189 197 . 531 455 85 . 537 614 782 1300 126 . 140 Parts 342 | 2 28 10 . 13 59 8 . 25 16 3 . 37 39 32 56 6 . 8 Haulers Intercepted . | . . . . . . . . . . . . . . . . . . . Recyclers Shooed 3 | . . . . 1 . . . . . . . . 2 . . . . . Parts Field Recycled . | . . . . . . . . . . . . . . . . . . . Retrieved Matter . | . . . . . . . . . . . . . . . . . . . Parts Self-Destructed 76 | . . . . . . . . . 13 6 . 32 . . . 17 . 8 Prevented 5 | . . . . . . . . . 2 2 . 1 . . . . . . Kills | -11 -10 -10 -10 -9 -8 -7 -7 -7 -7 -7 -7 -6 -6 -6 -5 -5 -4 -4 ------- Run | Yrd Mat Min Exi Min Mat Fac Was Fac Low Low Dat Pro Fac Ext Fac Upp Fac Upp Combat Hostiles Destroyed 134 | . 14 4 . 3 22 6 . 10 9 2 . 19 11 11 18 2 . 3 Melee 100 | . . . . 3 20 3 . 10 8 2 . 18 11 10 13 1 . 1 Guns 20 | . 12 1 . . 2 2 . . 1 . . 1 . 1 . . . . Cannons 11 | . 2 3 . . . . . . . . . . . . 3 1 . 2 AOE 3 | . . . . . . 1 . . . . . . . . 2 . . . Classes Destroyed 15 | 1 2 . . 2 3 . . 3 . . . 1 1 1 1 . . . Worker 6 | . . . . 1 1 . . 1 . . . . 1 . 2 . . . Builder 2 | . . . . . . . . 1 . . . . . 1 . . . . Tunneler 1 | 1 . . . . . . . . . . . . . . . . . . Recycler 7 | . . . . 2 1 1 . 1 . . . . . . 2 . . . Operator 2 | . . . . . . . . . . . . . . 2 . . . . Drone 2 | . . . . . . . . . . . . 2 . . . . . . Watcher 1 | . . . . . . . . . . . . . . . 1 . . . Swarmer 32 | . 3 2 . . 2 3 . 4 2 . . 14 1 . . . . 1 Grunt 60 | . 11 2 . 3 12 2 . 2 4 2 . . 7 6 8 1 . . Brawler 4 | . . . . . . . . 1 2 . . 1 . . . . . . Duelist 5 | . . . . . 1 1 . . . . . 1 1 . 1 . . . Sentry 15 | . . . . . 5 . . 1 1 . . 1 . 5 2 . . . Hunter 7 | . . . . . 2 . . . . . . . . . 2 1 . 2 Programmer 8 | . . . . . . . . 2 . . . . 1 . 5 . . . Heavy 1 | . . . . . . . . . . . . . 1 . . . . . Best Kill Streak 9 | 1 2 2 . 2 5 4 . 4 9 2 . 4 3 2 5 2 . 1 Combat Bots Only 9 | . 2 2 . 2 5 3 . 4 9 2 . 4 3 2 5 2 . 1 Max Kills in Single Turn 2 | 1 1 1 . 1 1 2 . 1 1 1 . 1 1 1 2 1 . 1 Gunslinging . | . . . . . . . . . . . . . . . . . . . Exploded 2 | . . . . . . 1 . . . . . . . . 2 . . . Melee 1 | . . . . 1 1 1 . 1 1 1 . 1 1 1 1 1 . 1 Uniques/NPCs Destroyed . | . . . . . . . . . . . . . . . . . . . Combat | -11 -10 -10 -10 -9 -8 -7 -7 -7 -7 -7 -7 -6 -6 -6 -5 -5 -4 -4 -------- Run | Yrd Mat Min Exi Min Mat Fac Was Fac Low Low Dat Pro Fac Ext Fac Upp Fac Upp Hostile Shots Fired 1338 | . 92 13 . 12 150 15 1 47 30 10 . 129 84 239 171 123 36 186 Missed 399 | . 21 4 . 3 46 2 . 15 8 . . 38 18 86 46 37 13 62 Damage Taken 15496 | . 736 105 . 109 1608 202 33 574 338 162 . 1217 1853 1361 3188 1308 468 2234 Core 3332 | . 171 18 . 23 164 14 . 87 33 . . 258 237 186 455 528 146 1012 Absorbed by Shields 843 | . . . . . . . . . . . . 94 60 523 166 . . . Redirected to Shielding 44 | . . . . . 33 . . . . . . . . . 11 . . . Ignored by Resistances 20 | . . . . . . . . . . . . . . . . . . 20 Core Remaining (%) 46 | 100 . . . 15 70 . . . . . . 44 . 50 . 1 . . Volleys Fired 161 | 2 62 6 . . 23 7 . 1 3 . . 16 6 8 9 3 6 9 Largest 3 | 2 2 2 . . 1 2 . 2 2 . . 2 2 2 2 3 1 2 Hottest 207 | 60 100 100 . . 69 102 . 117 108 . . 108 92 138 126 207 57 156 Shots Fired 267 | 4 110 12 . . 23 13 . 2 6 1 . 25 11 16 17 7 6 14 Gun 186 | 4 106 6 . . 22 7 . 1 3 . . 12 1 15 6 3 . . Cannon 73 | . 4 6 . . . . . 1 3 1 . 13 10 1 10 4 6 14 Launcher 8 | . . . . . 1 6 . . . . . . . . 1 . . . Special . | . . . . . . . . . . . . . . . . . . . Kinetic 128 | 2 44 . . . 17 . . 1 3 1 . 20 10 1 10 2 6 11 Thermal 121 | 2 66 12 . . 5 7 . 1 . . . . . 15 5 5 . 3 Explosive 7 | . . . . . 1 6 . . . . . . . . . . . . Electromagnetic 11 | . . . . . . . . . 3 . . 5 1 . 2 . . . Robot Hit Streak 11 | 4 11 6 . . 1 3 . 3 3 4 . 2 2 3 7 7 1 3 Robot Miss Streak 17 | . 8 1 . . 4 4 . . 2 . . 17 3 2 1 1 1 4 Penetration Max . | . . . . . . . . . . . . . . . . . . . Secondary Targets 1 | . 1 . . . . . . . . . . . . . . . . . Max Gunslinging Chain 1 | . 1 . . . . . . . . . . . . . . . . . Shots Hit Robots 434 | 4 66 8 . 13 62 10 . 32 17 9 . 34 52 45 61 10 3 8 Core Hits 209 | 2 28 6 . 4 25 17 . 15 11 3 . 18 22 17 31 5 . 5 Critical Kills 3 | . . . . . . . . . . . . . . . 1 . . 2 Critical Parts Destroyed 5 | . . . . . . . . . . . . . . . 2 . 2 1 Critical Strikes 35 | . . . . 2 8 . . 3 . . . 2 3 3 9 . 2 3 Burn 1 | . . . . . . . . . . . . . . . 1 . . . Destroy 9 | . . . . . . . . . . . . . . 1 3 . 2 3 Sever 24 | . . . . 2 8 . . 3 . . . 1 3 2 5 . . . Impale 1 | . . . . . . . . . . . . 1 . . . . . . Melee Attacks 319 | . . . . 13 59 6 . 31 16 8 . 33 47 40 57 7 . 2 Impact 2 | . . . . . . . . . . . . . . . . . . 2 Slashing 313 | . . . . 13 59 6 . 31 16 8 . 29 47 40 57 7 . . Piercing 4 | . . . . . . . . . . . . 4 . . . . . . Sneak Attacks 24 | . . . . 3 2 1 . 3 2 . . 1 4 4 4 . . . Combat Hostiles 2 | . . . . . . . . . . . . 1 . 1 . . . . Follow-up Attacks 3 | . . . . . . . . . . . . 3 . . . . . . Damage Inflicted 16677 | 40 708 118 . 700 2761 641 . 1449 797 393 . 1322 2240 2087 2767 331 95 228 Guns 1299 | 40 645 32 . . 156 58 . 18 39 . . 81 15 113 48 54 . . Cannons 1028 | . 53 86 . . . . . 25 28 23 . 89 137 27 231 113 84 132 Explosions 549 | . . . . . 24 281 . . . . . . . . 244 . . . Melee 13780 | . . . . 700 2581 302 . 1406 730 370 . 1152 2088 1947 2244 164 . 96 Ramming 21 | . 10 . . . . . . . . . . . . . . . 11 . Kinetic 1166 | 17 243 . . . 101 . . 25 28 23 . 111 137 27 231 42 84 97 Thermal 1237 | 23 455 118 . . 55 58 . 18 . . . . . 113 237 125 . 35 Explosive 305 | . . . . . 24 281 . . . . . . . . . . . . Electromagnetic 168 | . . . . . . . . . 39 . . 59 15 . 55 . . . Impact 96 | . . . . . . . . . . . . . . . . . . 96 Slashing 13604 | . . . . 700 2581 302 . 1406 730 370 . 1072 2088 1947 2244 164 . . Piercing 80 | . . . . . . . . . . . . 80 . . . . . . Highest Corruption 5 | . . . . . . . . 1 1 1 1 1 1 4 5 5 3 3 Average Corruption 1 | . . . . . . . . 1 1 1 1 1 1 1 1 5 2 3 Corruption Purged 4 | . . . . . . . . . . . . . . 4 . . . . Corruption Blocked . | . . . . . . . . . . . . . . . . . . . Effects 63 | . . . . . . . . 2 1 4 . 15 1 3 7 9 . 21 Message Errors 12 | . . . . . . . . 1 . 1 . 1 . 1 . 2 . 6 Matter Fused 15 | . . . . . . . . . 1 . . 3 1 2 3 . . 5 Heat Flow Errors 6 | . . . . . . . . . . . . 1 . . 2 . . 3 Energy Discharges 10 | . . . . . . . . 1 . 1 . 3 . . 1 1 . 3 Parts Rejected 3 | . . . . . . . . . . . . 1 . . . 2 . . Parts Fused 2 | . . . . . . . . . . . . 1 . . . 1 . . Data Loss (minor) 8 | . . . . . . . . . . 1 . . . . 1 3 . 3 Data Loss (major) 3 | . . . . . . . . . . . . 2 . . . . . 1 Misfires 4 | . . . . . . . . . . 1 . 3 . . . . . . Overload Shots . | . . . . . . . . . . . . . . . . . . . Overflow Damage 1260 | . . . . 173 163 22 . 93 42 6 . 129 274 211 101 . . 46 Projectiles . | . . . . . . . . . . . . . . . . . . . Explosions 20 | . . . . . . 6 . . . . . . . . 14 . . . Melee 1240 | . . . . 173 163 16 . 93 42 6 . 129 274 211 87 . . 46 Knockbacks 10 | . . . . . . . . . . . . 4 2 . 3 . 1 . Impact . | . . . . . . . . . . . . . . . . . . . Kinetic 10 | . . . . . . . . . . . . 4 2 . 3 . 1 . Secondary . | . . . . . . . . . . . . . . . . . . . Self-Inflicted Damage 208 | . . . . . 31 . . . . . . . . . 177 . . . Shots 3 | . . . . . 1 . . . . . . . . . 2 . . . Rammed . | . . . . . . . . . . . . . . . . . . . Targets Rammed 3 | . 2 . . . . . . . . . . . . . . . 1 . Kicked 3 | . 2 . . . . . . . . . . . . . . . 1 . Crushed . | . . . . . . . . . . . . . . . . . . . Highest Temperature 351 | 20 168 144 . . 26 351 . 51 66 10 . 214 78 238 132 208 . 267 Average Temperature 67 | 15 48 59 . . 12 171 . 29 31 9 . 62 33 115 31 91 . 94 Received Heat Transfer 2753 | . 300 27 . 60 423 45 . 27 90 90 . 72 189 565 559 135 18 153 Effects 2 | . . . . . . 1 . . . . . 1 . . . . . . Energy Bleed 2 | . . . . . . 1 . . . . . 1 . . . . . . Siege Activations . | . . . . . . . . . . . . . . . . . . . Robots Corrupted . | . . . . . . . . . . . . . . . . . . . Combat Hostiles . | . . . . . . . . . . . . . . . . . . . Parts Fried . | . . . . . . . . . . . . . . . . . . . Impact Corruptions 2 | . . . . . . . . . . . . . . . . . . 2 Robots Melted . | . . . . . . . . . . . . . . . . . . . Combat Hostiles . | . . . . . . . . . . . . . . . . . . . Parts Melted 2 | . 1 . . . . . . . . . . . . . 1 . . . Heat Transferred 2310 | 50 1036 260 . . 111 111 . 37 . . . . . 222 261 185 . 37 Parts Sabotaged . | . . . . . . . . . . . . . . . . . . . Parts Stolen . | . . . . . . . . . . . . . . . . . . . Parts Stripped . | . . . . . . . . . . . . . . . . . . . Power Chain Reactions . | . . . . . . . . . . . . . . . . . . . Alert | -11 -10 -10 -10 -9 -8 -7 -7 -7 -7 -7 -7 -6 -6 -6 -5 -5 -4 -4 ------- Run | Yrd Mat Min Exi Min Mat Fac Was Fac Low Low Dat Pro Fac Ext Fac Upp Fac Upp Peak Influence 566 | 5 178 146 . 53 527 314 51 188 . . . . 566 379 330 . 171 . Initial 450 | . 3 56 . . 19 239 36 28 . . . . 450 149 185 . 137 . Average 156 | 1 88 138 . 29 272 124 39 79 . . . . 432 113 153 . 144 . Maximum Alert Level 2 | . . . . . 2 1 . . . . . . 2 1 1 . . . Low Security (%) 71 | 100 100 100 . 100 32 58 100 100 . . . . . 89 66 . 100 . Level 1 20 | . . . . . 44 41 . . . . . . 34 10 33 . . . Level 2 7 | . . . . . 22 . . . . . . . 65 . . . . . Level 3 . | . . . . . . . . . . . . . . . . . . . Level 4 . | . . . . . . . . . . . . . . . . . . . Level 5 . | . . . . . . . . . . . . . . . . . . . High Security . | . . . . . . . . . . . . . . . . . . . Max Security . | . . . . . . . . . . . . . . . . . . . Squads Dispatched 27 | . 3 . . . 4 1 . 1 . . . . 4 3 11 . . . Investigation 7 | . 3 . . . 1 . . . . . . . . . 3 . . . Extermination 6 | . . . . . . . . 1 . . . . 1 . 4 . . . Reinforcement 14 | . . . . . 3 1 . . . . . . 3 3 4 . . . Assault . | . . . . . . . . . . . . . . . . . . . Garrison . | . . . . . . . . . . . . . . . . . . . Intercept . | . . . . . . . . . . . . . . . . . . . Searches Triggered 1 | . . . . . . . . . . . . . 1 . . . . . Construction Impeded 2 | . . . . . . 1 . . . . . . . . 1 . . . Haulers Reinforced . | . . . . . . . . . . . . . . . . . . . Active Scanning Responses . | . . . . . . . . . . . . . . . . . . . Cargo Convoy Interrupts . | . . . . . . . . . . . . . . . . . . . Stealth | -11 -10 -10 -10 -9 -8 -7 -7 -7 -7 -7 -7 -6 -6 -6 -5 -5 -4 -4 --------- Run | Yrd Mat Min Exi Min Mat Fac Was Fac Low Low Dat Pro Fac Ext Fac Upp Fac Upp Distress Signals 5 | . . . . . 2 . . 1 . . . . . 1 1 . . . Communications Jammed . | . . . . . . . . . . . . . . . . . . . Distress Signals . | . . . . . . . . . . . . . . . . . . . Times Spotted 255 | . 21 5 . 4 42 6 4 12 8 2 . 22 14 33 51 9 5 17 Peak Tracking Total 7 | . 5 3 . 2 6 4 5 4 7 2 . 5 4 3 6 5 4 7 Tactical Retreats 33 | . . . . . 6 . 1 1 1 . . 2 2 6 5 3 . 6 Traps | -11 -10 -10 -10 -9 -8 -7 -7 -7 -7 -7 -7 -6 -6 -6 -5 -5 -4 -4 ------- Run | Yrd Mat Min Exi Min Mat Fac Was Fac Low Low Dat Pro Fac Ext Fac Upp Fac Upp Traps Triggered 14 | . 4 . . . . 1 . 1 . . . . 1 3 4 . . . Indirectly . | . . . . . . . . . . . . . . . . . . . Trap Hack Attempts . | . . . . . . . . . . . . . . . . . . . Triggered . | . . . . . . . . . . . . . . . . . . . Disarmed . | . . . . . . . . . . . . . . . . . . . Reprogrammed . | . . . . . . . . . . . . . . . . . . . Reused . | . . . . . . . . . . . . . . . . . . . Traps Extracted . | . . . . . . . . . . . . . . . . . . . Installed . | . . . . . . . . . . . . . . . . . . . Triggered 3 | . . . . . . . . . . 3 . . . . . . . . Machines | -11 -10 -10 -10 -9 -8 -7 -7 -7 -7 -7 -7 -6 -6 -6 -5 -5 -4 -4 ---------- Run | Yrd Mat Min Exi Min Mat Fac Was Fac Low Low Dat Pro Fac Ext Fac Upp Fac Upp Machines Disabled 8 | . . . . . 1 . . . . . . . 2 1 3 . 1 . Max in Single Turn 2 | . . . . . 1 . . . . . . . 1 . 2 . 1 . Machines Repaired . | . . . . . . . . . . . . . . . . . . . Machines Dismantled . | . . . . . . . . . . . . . . . . . . . Machines Sabotaged . | . . . . . . . . . . . . . . . . . . . Overloaded Fab Kills . | . . . . . . . . . . . . . . . . . . . Hacking | -11 -10 -10 -10 -9 -8 -7 -7 -7 -7 -7 -7 -6 -6 -6 -5 -5 -4 -4 --------- Run | Yrd Mat Min Exi Min Mat Fac Was Fac Low Low Dat Pro Fac Ext Fac Upp Fac Upp Machines Accessed 36 | . 3 . . 2 7 2 . 1 . 1 4 . 1 4 11 . . . Terminals 27 | . 3 . . 2 6 2 . 1 . . . . 1 4 8 . . . Fabricators 2 | . . . . . . . . . . . . . . . 2 . . . Repair Stations 1 | . . . . . . . . . . . . . . . 1 . . . Recycling Units . | . . . . . . . . . . . . . . . . . . . Scanalyzers 1 | . . . . . 1 . . . . . . . . . . . . . Garrison Access . | . . . . . . . . . . . . . . . . . . . Total Hacks 97 | . 3 . . 8 14 8 . 1 . 1 17 . 1 9 35 . . . Successful 48 | . . . . 3 4 3 . 1 . 1 17 . 1 3 15 . . . Failed 49 | . 3 . . 5 10 5 . . . . . . . 6 20 . . . Catastrophic 19 | . 2 . . 2 4 2 . . . . . . . 3 6 . . . Database Lockouts . | . . . . . . . . . . . . . . . . . . . Manual 61 | . 3 . 1 8 10 8 . . . 2 . . . 9 20 . . . Terminals 65 | . 3 . . 8 10 8 . 1 . . . . 1 9 25 . . . Fabricators 8 | . . . . . . . . . . . . . . . 8 . . . Repair Stations 2 | . . . . . . . . . . . . . . . 2 . . . Recycling Units . | . . . . . . . . . . . . . . . . . . . Scanalyzers 4 | . . . . . 4 . . . . . . . . . . . . . Garrison Access . | . . . . . . . . . . . . . . . . . . . Terminal Hacks 41 | . . . . 3 1 3 . 1 . 1 17 . 1 3 11 . . . Record 15 | . . . . . . . . 1 . . 11 . . . 3 . . . Part Schematic 2 | . . . . . . . . . . . 2 . . . . . . . Robot Schematic 3 | . . . . . . . . . . . 3 . . . . . . . Prototype ID Bank 1 | . . . . . . . . . . . 1 . . . . . . . Open Door 2 | . . . . . . . . . . 1 . . 1 . . . . . Branch Access Points 3 | . . . . 1 1 . . . . . . . . . 1 . . . Alert Level 2 | . . . . 1 . . . . . . . . . . 1 . . . Unreport Threat 9 | . . . . 1 . 3 . . . . . . . 2 3 . . . Assault Status 1 | . . . . . . . . . . . . . . . 1 . . . Recall Investigation 1 | . . . . . . . . . . . . . . . 1 . . . Recall Reinforcements 2 | . . . . . . . . . . . . . . 1 1 . . . Fabricator Hacks 4 | . . . . . . . . . . . . . . . 4 . . . Network Status 1 | . . . . . . . . . . . . . . . 1 . . . Load Schematic 2 | . . . . . . . . . . . . . . . 2 . . . Build 1 | . . . . . . . . . . . . . . . 1 . . . Repair Station Hacks . | . . . . . . . . . . . . . . . . . . . Recycling Unit Hacks . | . . . . . . . . . . . . . . . . . . . Scanalyzer 3 | . . . . . 3 . . . . . . . . . . . . . Insert Component 2 | . . . . . 2 . . . . . . . . . . . . . Analyze 1 | . . . . . 1 . . . . . . . . . . . . . Garrison Access Hacks . | . . . . . . . . . . . . . . . . . . . Unauthorized Hacks . | . . . . . . . . . . . . . . . . . . . Terminals . | . . . . . . . . . . . . . . . . . . . Fabricators . | . . . . . . . . . . . . . . . . . . . Repair Stations . | . . . . . . . . . . . . . . . . . . . Recycling Units . | . . . . . . . . . . . . . . . . . . . Scanalyzers . | . . . . . . . . . . . . . . . . . . . Garrison Access . | . . . . . . . . . . . . . . . . . . . Data Cores Recovered . | . . . . . . . . . . . . . . . . . . . Used . | . . . . . . . . . . . . . . . . . . . Hacking Detections 30 | . 3 . . 2 6 2 . 1 . . . . 1 4 11 . . . Full Trace Events 4 | . . . . . 1 . . . . . . . . . 3 . . . Feedback Events 1 | . . . . . . . . . . . . . . . 1 . . . Hackware Fried 1 | . . . . . . . . . . . . . . . 1 . . . Feedback Blocked . | . . . . . . . . . . . . . . . . . . . Robot Schematics Acquired 3 | . . . . . . . . . . . 3 . . . . . . . Robots Built 2 | . . . . . . . . . . . . . . . 2 . . . Authchips . | . . . . . . . . . . . . . . . . . . . Time 67 | . . . . . . . . . . . . . . . 67 . . . Total Robot Build Rating 8 | . . . . . . . . . . . . . . . 8 . . . Part Schematics Acquired 3 | . . . . . 1 . . . . . 2 . . . . . . . Parts Built . | . . . . . . . . . . . . . . . . . . . Authchips . | . . . . . . . . . . . . . . . . . . . Time . | . . . . . . . . . . . . . . . . . . . Total Part Build Rating . | . . . . . . . . . . . . . . . . . . . Parts Repaired . | . . . . . . . . . . . . . . . . . . . Time . | . . . . . . . . . . . . . . . . . . . Parts Recycled . | . . . . . . . . . . . . . . . . . . . Recycled Matter . | . . . . . . . . . . . . . . . . . . . Retrieved Matter . | . . . . . . . . . . . . . . . . . . . Retrieved Components . | . . . . . . . . . . . . . . . . . . . Parts Scanalyzed 1 | . . . . . 1 . . . . . . . . . . . . . Part Schematics Acquired 1 | . . . . . 1 . . . . . . . . . . . . . Parts Damaged . | . . . . . . . . . . . . . . . . . . . Bothacking | -11 -10 -10 -10 -9 -8 -7 -7 -7 -7 -7 -7 -6 -6 -6 -5 -5 -4 -4 ------------ Run | Yrd Mat Min Exi Min Mat Fac Was Fac Low Low Dat Pro Fac Ext Fac Upp Fac Upp Used RIF Installer . | . . . . . . . . . . . . . . . . . . . Robots Hacked . | . . . . . . . . . . . . . . . . . . . Non-combat . | . . . . . . . . . . . . . . . . . . . Combat . | . . . . . . . . . . . . . . . . . . . Robot Hacks Applied . | . . . . . . . . . . . . . . . . . . . Relay Couplers Released 4 | . . . . . . . . 4 . . . . . . . . . . Programmers 4 | . . . . . . . . 4 . . . . . . . . . . Fabnet Peak Effective % . | . . . . . . . . . . . . . . . . . . . Robots Rewired 8 | . . . . . . . . . . . . . . 8 . . . . Allies Hacked 1 | . . . . . . . . . . . . . . . 1 . . . Hacks Repelled . | . . . . . . . . . . . . . . . . . . . Allies | -11 -10 -10 -10 -9 -8 -7 -7 -7 -7 -7 -7 -6 -6 -6 -5 -5 -4 -4 -------- Run | Yrd Mat Min Exi Min Mat Fac Was Fac Low Low Dat Pro Fac Ext Fac Upp Fac Upp Total Allies 20 | . . . . . . . . . . . . 1 . 16 2 1 . . Largest Group 9 | . . . . . . . . . . . . 1 . 9 8 1 . . Highest-Rated Group 425 | . . . . . . . . . . . . 96 . 425 394 180 . . Highest-Rated Ally 180 | . . . . . . . . . . . . 96 . 159 159 180 . . Total Orders . | . . . . . . . . . . . . . . . . . . . Ally Attacks 190 | . . . . . . . . . . . . 4 . 117 52 17 . . Total Damage 4620 | . . . . . . . . . . . . 203 . 2330 1539 548 . . Kills 28 | . . . . . . . . . . . . . . 13 11 4 . . Allies Corrupted . | . . . . . . . . . . . . . . . . . . . Allies Melted 1 | . . . . . . . . . . . . 1 . . . . . . Intel | -11 -10 -10 -10 -9 -8 -7 -7 -7 -7 -7 -7 -6 -6 -6 -5 -5 -4 -4 ------- Run | Yrd Mat Min Exi Min Mat Fac Was Fac Low Low Dat Pro Fac Ext Fac Upp Fac Upp Robot Analysis Total . | . . . . . . . . . . . . . . . . . . . Derelict Logs Recovered 11 | . . 1 . 2 . . . . 3 . . 2 . . . 1 . 2 Drone Launches . | . . . . . . . . . . . . . . . . . . . Drone Recoveries . | . . . . . . . . . . . . . . . . . . . Exploration | -11 -10 -10 -10 -9 -8 -7 -7 -7 -7 -7 -7 -6 -6 -6 -5 -5 -4 -4 ------------- Run | Yrd Mat Min Exi Min Mat Fac Was Fac Low Low Dat Pro Fac Ext Fac Upp Fac Upp Turns Passed 12721 | 64 683 300 267 761 1080 394 129 590 647 468 99 1694 615 1177 2372 269 399 713 Spaces Moved 8409 | 42 379 227 221 574 626 282 105 383 489 361 82 1279 360 702 1250 254 293 500 Core 478 | 4 . . . . . . . . . . . . . . 3 97 . 374 Treads 45 | . . . . . . . . . . . . . . . 45 . . . Legs 7493 | 38 379 227 221 574 626 282 105 383 489 361 82 1279 360 702 960 6 293 126 Wheels . | . . . . . . . . . . . . . . . . . . . Hover 393 | . . . . . . . . . . . . . . . 242 151 . . Flight . | . . . . . . . . . . . . . . . . . . . Fastest Speed 40 | 50 120 120 120 120 120 122 120 120 122 122 122 120 120 120 40 40 120 50 Average Speed 126 | 113 120 120 120 120 123 122 120 120 122 122 122 122 124 121 160 77 120 134 Slowest Speed 600 | 120 190 120 120 120 190 122 122 122 122 122 122 123 195 123 360 125 120 600 Overloaded Moves . | . . . . . . . . . . . . . . . . . . . Propulsion Burnouts . | . . . . . . . . . . . . . . . . . . . Robots Hopped . | . . . . . . . . . . . . . . . . . . . Cave-ins Triggered . | . . . . . . . . . . . . . . . . . . . Exploration Rate (%) 48 | 3 69 52 61 96 59 8 73 15 69 50 68 99 5 72 29 18 6 67 Regions Visited 18 Branch Regions 10 Pre-discovered Areas 2 | . . . . . . . . . . . 1 . . . . . . 1 Known Exits Taken 5 | . . . . . 1 . . . 1 . . . 1 1 1 . . . Unknown Exits Taken 11 | 1 1 1 1 1 . . . 1 . 1 1 1 . . . 1 1 . Scrap Searched 10 | . . 1 . 1 . . . . . 1 . 4 . . . 2 . 1 Spaces Dug . | . . . . . . . . . . . . . . . . . . . Terrain Destroyed 90 | . . . . . 9 22 . . . . . 4 1 . 51 . 1 2 Melee . | . . . . . . . . . . . . . . . . . . . Projectile 10 | . . . . . 1 . . . . . . 4 1 . 1 . 1 2 AOE 80 | . . . . . 8 22 . . . . . . . . 50 . . . Terrain Rammed . | . . . . . . . . . . . . . . . . . . . Walls Destroyed . | . . . . . . . . . . . . . . . . . . . Machines Disabled . | . . . . . . . . . . . . . . . . . . . Actions | -11 -10 -10 -10 -9 -8 -7 -7 -7 -7 -7 -7 -6 -6 -6 -5 -5 -4 -4 --------- Run | Yrd Mat Min Exi Min Mat Fac Was Fac Low Low Dat Pro Fac Ext Fac Upp Fac Upp Total 9922 | 51 505 244 223 635 860 323 107 496 524 384 81 1367 486 967 1510 309 331 519 Wait 589 | . 36 6 . 45 82 3 . 51 15 13 . 26 35 135 99 27 16 . Move 8392 | 41 378 226 220 573 625 282 104 382 488 360 81 1278 359 701 1249 253 292 500 Hop . | . . . . . . . . . . . . . . . . . . . Pick Up 86 | 1 8 1 1 2 7 8 . 7 . 1 . 4 7 8 27 2 2 . Fast Attach 89 | 7 4 . . . 13 1 . 3 . . . 5 10 11 20 3 9 3 Attach 73 | . 2 . . . 7 3 1 3 . . . 4 9 6 25 6 2 5 Detach 15 | . . . . . 2 2 . 1 . . . . 1 2 3 3 1 . Swap 66 | . 7 2 1 . 16 3 2 6 1 1 . 2 3 10 11 1 . . Drop 99 | . 6 3 1 2 26 8 . 11 1 1 . 3 9 12 10 4 2 . Fire 161 | 2 62 6 . . 23 7 . 1 3 . . 16 6 8 9 3 6 9 Melee 315 | . . . . 13 59 6 . 31 16 8 . 29 47 40 57 7 . 2 Ram . | . . . . . . . . . . . . . . . . . . . Kick 3 | . 2 . . . . . . . . . . . . . . . 1 . Crush . | . . . . . . . . . . . . . . . . . . . Escape Stasis 3 | . . . . . . . . . . . . . . 3 . . . . Rewire 31 | . . . . . . . . . . . . . . 31 . . . . Trap . | . . . . . . . . . . . . . . . . . . . Miscellaneous . | . . . . . . . . . . . . . . . . . . . Route ------- -11/Scrapyard -10/Materials (discovered 5 exits: [*Mat x3] / [*Min x2]) -10/Mines -10/Exiles -9/Mines (discovered 2 exits: *Mat x2) -8/Materials (discovered 4 exits: *Fac x3 / Sto) -7/Factory -7/Waste -7/Factory -7/Lower Caves -7/Lower Caves -7/Data Miner -6/Proximity Caves -6/Factory (discovered 4 exits: Fac / Low / *Ext x2) -6/Extension (discovered 2 exits: *Fac / [*Cet]) -5/Factory (discovered 2 exits: *Upp x2) -5/Upper Caves -4/Factory -4/Upper Caves History --------- Turn | Location | Event 7 | -11/Scrapyard | Discovered new exit (range 16) 65 | -11/Scrapyard | Entered Materials 303 | -10/Materials | Build established: Mutant 344 | -10/Materials | Discovered new exit (range 16) 537 | -10/Materials | Discovered new exit (range 4) 587 | -10/Materials | Discovered new exit (range 14) 628 | -10/Materials | Core integrity fell below 50% 675 | -10/Materials | Discovered new exit (range 6) 732 | -10/Materials | Discovered new exit (range 13) 748 | -10/Materials | Entered Mines 824 | -10/Mines | Met a Derelict bent on vengeance 897 | -10/Mines | Learned 2 Materials zone layouts 929 | -10/Mines | Build established: Scavenger-Mutant 962 | -10/Mines | Deemed a non-threat by the Exiles lab entrance 963 | -10/Mines | Discovered new exit (range 5) 1004 | -10/Mines | Received a Rocket Launcher from a helpful Derelict 1048 | -10/Mines | Entered Exiles 1077 | -10/Exiles | Met 8R-AWN 1095 | -10/Exiles | Met EX-HEX 1134 | -10/Exiles | Met EX-BIN 1150 | -10/Exiles | Aligned with FarCom system 1152 | -10/Exiles | Given EX-Vault access code 1182 | -10/Exiles | Opened EX-Vault 1192 | -10/Exiles | Found Prototype Slashing Weapon 1204 | -10/Exiles | Identified Longsword +1 1222 | -10/Exiles | Warned to stay clear of 0b10 Research branches 1234 | -10/Exiles | Exiles lab attacked by MAIN.C 1301 | -10/Exiles | Discovered new exit (range 14) 1315 | -10/Exiles | Left Exiles lab with Longsword +1 1315 | -10/Exiles | Entered Mines 1330 | -9/Mines | Learned Materials terminal intel 1331 | -9/Mines | Discovered new exit (range 7) 1423 | -9/Mines | Assembled infested the area 1489 | -9/Mines | Build established: Mutant 1795 | -9/Mines | Discovered new exit (range 8) 1873 | -9/Mines | Core integrity fell below 20% 1948 | -9/Mines | Learned 4 Materials zone layouts 2076 | -9/Mines | Entered Materials 2076 | -8/Materials | Evolved 4 slots: Propulsion x2, Utility x2 2077 | -8/Materials | Identified exit to Factory 2077 | -8/Materials | Identified exit to Storage 2078 | -8/Materials | Loaded intel: 12 terminal locations 2703 | -8/Materials | Build established: Scavenger-Mutant 3156 | -8/Materials | Entered Factory 3156 | -7/Factory | Evolved 2 slots: Propulsion x1, Weapon x1 3550 | -7/Factory | Sucked down chute 3550 | -7/Factory | Entered Waste 3578 | -7/Waste | Spotted C-40 Crusher 3578 | -7/Waste | Spotted C-40 Crusher 3612 | -7/Waste | Build established: Mutant 3616 | -7/Waste | Spotted C-40 Crusher 3623 | -7/Waste | Spotted C-40 Crusher 3633 | -7/Waste | Spotted C-40 Crusher 3638 | -7/Waste | Crushed by Compactor (1 part destroyed, 1 dropped) 3645 | -7/Waste | Spotted C-40 Crusher 3666 | -7/Waste | Discovered new exit (range 11) 3679 | -7/Waste | Entered Factory 4241 | -7/Factory | Discovered new exit (range 16) 4269 | -7/Factory | Entered Lower Caves 4339 | -7/Lower Caves | Learned Factory terminal intel 4377 | -7/Lower Caves | Encountered a Warlord checkpoint 4399 | -7/Lower Caves | Spotted B-75 Beast 4415 | -7/Lower Caves | Identified exit to Lower Caves 4689 | -7/Lower Caves | Attracted the attention of an 0b10 outpost 4761 | -7/Lower Caves | Destroyed 9 combat bots 4898 | -7/Lower Caves | Learned 4 Factory zone layouts 4916 | -7/Lower Caves | Entered another Lower Caves area 5209 | -7/Lower Caves | Discovered new exit (range 8) 5384 | -7/Lower Caves | Entered Data Miner 5384 | -7/Data Miner | Discovered new exit (range 6) 5408 | -7/Data Miner | Met Data Miner 5431 | -7/Data Miner | Learned location of Section 7 (-2) 5431 | -7/Data Miner | Acquired the access code to Warlord's prototype stash 5452 | -7/Data Miner | Received God Mode back door access code from Data Miner 5483 | -7/Data Miner | Entered Proximity Caves 5485 | -6/Proximity Caves | Spotter reported a threat 5486 | -6/Proximity Caves | Spotter reported a threat 5531 | -6/Proximity Caves | Learned 8 Factory zone layouts 5776 | -6/Proximity Caves | Spotted B-75 Beast 5794 | -6/Proximity Caves | Learned Factory terminal intel 5815 | -6/Proximity Caves | Attracted the attention of an 0b10 checkpoint 5868 | -6/Proximity Caves | Spotter reported a threat 6041 | -6/Proximity Caves | Build established: Gladiator 6160 | -6/Proximity Caves | Escorted by Enhanced Grunt 6213 | -6/Proximity Caves | Lost 3 parts (1p1u1w) 6464 | -6/Proximity Caves | Build established: Mutant 7032 | -6/Proximity Caves | Discovered new exit (range 10) 7043 | -6/Proximity Caves | Core integrity fell below 50% 7177 | -6/Proximity Caves | Entered Factory 7177 | -6/Factory | Evolved 2 slots: Power x1, Utility x1 7178 | -6/Factory | Identified exit to Lower Caves 7178 | -6/Factory | Identified exit to Extension 7178 | -6/Factory | Identified exit to Factory 7179 | -6/Factory | Loaded intel: 28 terminal locations 7527 | -6/Factory | Search patrols dispatched 7655 | -6/Factory | Lost 4 parts (1p1n1u1w) 7783 | -6/Factory | Discovered exit to Extension (range 9) 7792 | -6/Factory | Entered Extension 7822 | -6/Extension | Lost 6 parts (2n2u2w) 7908 | -6/Extension | Build established: Scavenger-Mutant 7967 | -6/Extension | Rescued a captive Derelict 7981 | -6/Extension | Rescued a captive Derelict 8129 | -6/Extension | Rescued a captive Derelict 8208 | -6/Extension | Lost 3 allies 8347 | -6/Extension | Spotted B-75 Beast 8394 | -6/Extension | Lost 4 allies 8582 | -6/Extension | Spotted B-75 Beast 8627 | -6/Extension | Lost 3 parts (1n1u1w) 8710 | -6/Extension | Rescued a captive Derelict 8713 | -6/Extension | Rescued a captive Derelict 8794 | -6/Extension | Rescued A7 8860 | -6/Extension | Rescued a captive Derelict 8868 | -6/Extension | Rescued a captive Derelict 8945 | -6/Extension | Discovered exit to Factory (range 10) 8946 | -6/Extension | Discovered new exit (range 6) 8969 | -6/Extension | Entered Factory 8969 | -5/Factory | Accompanied by 8 allies (A7) 8969 | -5/Factory | Evolved 2 slots: Utility x2 8970 | -5/Factory | Loaded intel: 26 terminal locations 9362 | -5/Factory | Lost 6 allies 9559 | -5/Factory | Lost 6 parts (2p2n2u) 9863 | -5/Factory | Identified exit to Upper Caves 9938 | -5/Factory | Lost 3 parts (2n1u) 10030 | -5/Factory | Lost 3 parts (2u1w) 10137 | -5/Factory | Build established: Hacker-Mutant 10157 | -5/Factory | Imp. Hacking Suite fried by hacking feedback 10291 | -5/Factory | Fabricated Y-54 Guardian? 10335 | -5/Factory | Lost 7 parts (1p4n2u) 10630 | -5/Factory | Build established: Scavenger-Mutant 11341 | -5/Factory | Entered Upper Caves 11455 | -5/Upper Caves | Core integrity fell below 50% 11487 | -5/Upper Caves | Lost 10 parts (2p3n4u1w) 11521 | -5/Upper Caves | Core integrity fell below 20% 11543 | -5/Upper Caves | 7V-RTL showed up to help 11593 | -5/Upper Caves | 7V-RTL revealed a hidden path 11610 | -5/Upper Caves | Entered Factory 11610 | -4/Factory | Evolved 2 slots: Propulsion x1, Weapon x1 11728 | -4/Factory | Build established: Mutant 11932 | -4/Factory | Discovered new exit (range 14) 12009 | -4/Factory | Entered Upper Caves 12048 | -4/Upper Caves | Spotted B-86 Titan 12218 | -4/Upper Caves | Lost 7 parts (1p2n3u1w) 12294 | -4/Upper Caves | Lost 3 parts (1p1n1w) 12503 | -4/Upper Caves | Attracted the attention of an 0b10 base 12516 | -4/Upper Caves | Core integrity fell below 50% 12552 | -4/Upper Caves | Lost 4 parts (2u2w) 12576 | -4/Upper Caves | Core integrity fell below 20% 12610 | -4/Upper Caves | Learned Research trap positions 12722 | -4/Upper Caves | Destroyed by G-67 Veteran with Field Laser Last Messages --------------- 12657_ Acquired 1 matter. 12665_ System corrupted: Energy discharge (-34). 12670_ Searching scrap... 12670_ Found Lance. 12670_ Found Imp. Thermal Shield. 12670_ Found Power Maul. 12670_ Found Adv. Signal Interpreter. 12670_ Found 18 Matter. 12671_ Acquired Power Maul. 12672_ Acquired 18 matter. 12677_ Destroyed VTOL Module. 12677_ S-27 Virus system corrupted by crushing effect. 12683_ Destroyed VTOL Module. 12683_ S-27 Virus system corrupted by crushing effect. 12683_ S-27 Virus destroyed. 12688_ Acquired Lance. 12691_ Acquired Imp. Thermal Shield. 12715_ System corrupted: Component data lost. Map ----- +----------------------------------------------------+ | #????????????????# #??###????????????? | | ##????????????????# ## #?????????????????? | | ###?????????????????# #####?????????????????? | | ??##???????????????????# ##???????????????????? | | ??????????????????????## ####????????????????? | | ??????????????? ?????# #????????????????? | | ?????????????? ?????#### #????????????????? | | ???????????? ???????## ##????????????????? | | ??????????? ?????????# ##?????????????????? | | ?????????? #?????????## ##?????????????????? | | ????????? #????###### ######????????????? | | ######## #????# #????????????? | | #????# #????????????? | | #???### #####+#####% #????????????? | | ## #???## #""" "??# #????????????? | | # #####? #?#### #" """# #????????????? | | # #????? #??# #"T """# #????????????? | | # ####?# #??## #### #" """#! #????????????? | | # ## #???#???## #" # #????????????? | | #????????# #" "# #????????????? | | ##???????## #" "# #????????????? | | #????##### #" "# #????????????? | | ## ##???# #"g "# #????????????? | | ## ##??# ##/##g##### #????????????? | | ### #?## sg #????????????? | | # ##?# ##### @s #????????????? | | ##???## #### ## #####????????????? | | ??????# ## ## ## #????????????????? | | ??????# ## ## ######????????????????? | | ### ##?????????????????????? | | ##### ## ##?## ###??????????????????????? | | ????#### ########???#####????????????????????????? | | ???????###???????????????????????????????????????? | | ?????????????????????????????????????????????????? | | ?????????????????????????????????????????????????? | | ?????????????????????????????????????????????????? | | ?????????????????????????????????????????????????? | | ?????????????????????????????????????????????????? | | ?????????????????????????????????????????????????? | | ?????????????????????????????????????????????????? | | ?????????????????????????????????????????????????? | | ?????????????????????????????????????????????????? | | ?????????????????????????????????????????????????? | | ?????????????????????????????????????????????????? | | ?????????????????????????????????????????????????? | | ?????????????????????????????????????????????????? | | ?????????????????????????????????????????????????? | | ?????????????????????????????????????????????????? | | | | | +----------------------------------------------------+ Best States ------------- Heat Dissipation 92 Energy Generation 31 Energy Capacity 355 Matter Stores 300 Matter Capacity 300 Sight Range 16 Terrain Scan Range 16 Terrain Scan Density 210 ECM Strength 1 Armor Coverage 600 Resistance: TH 25 Resistance: EX 50 Core Shielding 20 Utility Shielding 66 Weapon Shielding 33 Melee Speed Boost 20 Phase Shifting 5 Evasion (%) 62 Targeting Accuracy 5 Melee Accuracy 5 Core Analysis 6 Recoil Reduction 2 Particle Charging 20 Kinecelleration 30 Offensive Hacking 26 Defensive Hacking 10 Item Schematics ----------------- Rocket Launcher | -8/Materials | Scanalyzed Combat Drone Bay | -7/Data Miner | Free Adv. Hacking Suite | -7/Data Miner | Free Robot Schematics ------------------ A-15 Conveyor | -7/Data Miner | Free S-27 Virus | -7/Data Miner | Free Y-54 Guardian | -7/Data Miner | Free Fabricated ------------ Y-54 Guardian | x2 | -5/Factory Alien Tech Used ----------------- None Achievements -------------- A New Friend Explorer I'm Back, Baby! Leap Before You Look My Command Is Your Wish Prison Break The Oracle root@ Challenges ------------ None Game ------ Seed CentriumElectronCannon Manual? 0 Play Time 03:14:56 Cumulative 10.4 hours Start 2024.04.03 @ 12:08:17 End 2024.04.04 @ 09:43:00 Sessions 11 Manual Loads 0 Difficulty Rogue Special Mode None Game No. 9 Rogue 9 Adventurer 0 Explorer 0 Win Type - Total 0 Types 0/0/0/0/0/0/0/0/0 Lore% 13 Gallery% 16 Achievement% 16 Wizard Run 0 Options --------- Layout 1 ASCII 0 Keyboard 0 Movement Arrows Keybinds 0 Fullscreen 1 Font 24/Tamsyn Map View 50x35 Zoom Use 0% Tactical HUD 1 Map Filters NONE Filters NONE Steam 1 RUN: 05406872-ac99-4388-93c0-88a8da053230